bitfinex-derivatives/quotes_BTCF0:USTF0_20241104
["timestamp","ask_amount","ask_price","bid_price","bid_amount"]
[1730730147089,0.072955,68582.0,68581.0,0.072951]
[1730730148084,0.3608,68584.0,68583.0,0.072951]
[1730730149077,0.072949,68588.0,68587.0,0.072946]
[1730730149273,0.002,68584.0,68583.0,0.072951]
[1730730149480,0.07495,68584.0,68583.0,0.072951]
[1730730150291,0.07395,68584.0,68583.0,0.072951]
[1730730150885,0.07295,68584.0,68583.0,0.072951]
[1730730151884,0.07395,68584.0,68583.0,0.074951]
[1730730152587,0.002,68584.0,68583.0,0.074951]
[1730730153381,0.3608,68592.0,68583.0,0.002]
[1730730153595,0.3608,68592.0,68588.0,0.072943]
[1730730153596,0.072945,68589.0,68588.0,0.072943]
[1730730155598,0.072945,68589.0,68588.0,0.073943]
[1730730155782,0.072945,68589.0,68588.0,0.10294036]
[1730730156383,0.072936,68597.0,68594.0,0.072939]
[1730730156593,0.072942,68595.0,68594.0,0.072939]
[1730730156785,0.072942,68595.0,68588.0,0.10294036]
[1730730156994,0.072942,68595.0,68594.0,0.072939]
[1730730158603,0.075942,68595.0,68594.0,0.072939]
[1730730159307,0.079942,68595.0,68594.0,0.072939]
[1730730160407,0.079938,68595.0,68594.0,0.072939]
[1730730160615,0.079938,68595.0,68594.0,0.104639]
[1730730161202,0.007,68595.0,68594.0,0.104639]
[1730730161615,0.079938,68595.0,68594.0,0.104639]
[1730730163614,0.079938,68595.0,68594.0,0.072939]
[1730730164314,0.007,68595.0,68594.0,0.072939]
[1730730164610,0.007,68595.0,68594.0,0.103239]
[1730730165202,0.079938,68595.0,68594.0,0.072939]
[1730730167517,0.007,68595.0,68594.0,0.072939]
[1730730171413,0.007,68595.0,68594.0,0.187459]
[1730730172716,0.079938,68595.0,68594.0,0.187459]
[1730730174617,0.007,68595.0,68594.0,0.187459]
[1730730176323,0.007,68595.0,68594.0,0.072939]
[1730730176324,0.079938,68595.0,68594.0,0.072939]
[1730730176516,0.079938,68595.0,68593.0,0.3608]
[1730730176517,0.07294,68594.0,68593.0,0.3608]
[1730730176821,0.07294,68594.0,68593.0,0.433741]
[1730730177017,0.07294,68594.0,68593.0,0.3608]
[1730730177214,0.10474,68594.0,68593.0,0.3608]
[1730730178128,0.10774,68594.0,68593.0,0.3608]
[1730730178322,0.13794,68594.0,68593.0,0.3608]
[1730730178623,0.13994,68594.0,68593.0,0.3608]
[1730730181120,0.0368,68594.0,68593.0,0.433741]
[1730730181320,0.005,68594.0,68593.0,0.433741]
[1730730181524,0.005,68594.0,68593.0,0.57380695]
[1730730181827,0.005,68594.0,68593.0,0.63187796]
[1730730182032,0.005,68594.0,68593.0,0.57380695]
[1730730182331,0.005,68594.0,68593.0,1.01116695]
[1730730183121,0.005,68594.0,68593.0,0.57380695]
[1730730183330,0.005,68594.0,68593.0,1.01116695]
[1730730183519,0.005,68594.0,68593.0,1.08395916]
[1730730183720,0.005,68594.0,68593.0,1.09654193]
[1730730184517,0.005,68594.0,68593.0,1.01116695]
[1730730185231,0.005,68594.0,68593.0,0.57380695]
[1730730186117,0.005,68594.0,68593.0,0.433741]
[1730730186927,0.005,68594.0,68593.0,0.544341]
[1730730186928,0.07794,68594.0,68593.0,0.544341]
[1730730187424,0.072945,68589.0,68588.0,0.02799736]
[1730730187617,0.072945,68589.0,68588.0,0.072946]
[1730730188025,0.14006595,68591.0,68587.0,0.38949787]
[1730730188231,0.14006595,68591.0,68587.0,0.3608]
[1730730188232,0.072946,68588.0,68587.0,0.3608]
[1730730189734,0.072946,68588.0,68587.0,0.3628]
[1730730190433,0.072946,68588.0,68587.0,0.3638]
[1730730190829,0.072946,68588.0,68587.0,0.436747]
[1730730195835,0.04504024,68588.0,68587.0,0.436747]
[1730730200043,0.04504024,68588.0,68587.0,0.49502797]
[1730730204539,0.04504024,68588.0,68587.0,0.075947]
[1730730204932,0.072943,68591.0,68590.0,0.072942]
[1730730205439,0.07294,68594.0,68593.0,0.072938]
[1730730207938,0.07294,68594.0,68590.0,0.073943]
[1730730207939,0.072942,68592.0,68590.0,0.073943]
[1730730208139,0.21300595,68594.0,68590.0,0.001]
[1730730208140,0.072943,68591.0,68590.0,0.001]
[1730730209639,0.072947,68590.0,68589.0,0.072944]
[1730730209947,0.21600595,68594.0,68586.0,0.433748]
[1730730209948,0.072947,68587.0,68586.0,0.433748]
[1730730210142,0.21301295,68587.0,68586.0,0.433748]
[1730730211452,0.21301295,68587.0,68586.0,0.434748]
[1730730211849,0.21401295,68587.0,68586.0,0.436748]
[1730730212255,0.21401295,68587.0,68586.0,0.075948]
[1730730212450,0.21401295,68587.0,68586.0,0.003]
[1730730213645,0.21401295,68587.0,68586.0,0.075948]
[1730730217052,0.57481295,68587.0,68586.0,0.003]
[1730730220361,0.434747,68587.0,68586.0,0.003]
[1730730221763,0.434747,68587.0,68586.0,0.075948]
[1730730222760,0.434747,68587.0,68586.0,0.075648]
[1730730223261,0.073947,68587.0,68586.0,0.075648]
[1730730230764,0.001,68587.0,68586.0,0.436448]
[1730730230962,0.001,68587.0,68586.0,0.501048]
[1730730231969,0.001,68587.0,68586.0,0.436448]
[1730730235469,0.001,68587.0,68586.0,0.873848]
[1730730243475,0.001,68587.0,68586.0,0.436448]
[1730730244477,0.001,68587.0,68586.0,0.873848]
[1730730245173,0.001,68587.0,68586.0,0.984288]
[1730730245372,0.0102,68601.0,68600.0,0.072933]
[1730730245571,0.00076,68604.0,68603.0,0.07293]
[1730730245767,0.072926,68607.0,68606.0,0.072927]
[1730730245963,0.072918,68615.0,68600.0,0.54571609]
[1730730246282,0.072923,68610.0,68609.0,0.072921]
[1730730248077,0.014,68610.0,68609.0,0.072921]
[1730730248463,0.028,68610.0,68609.0,0.072921]
[1730730248977,0.028,68610.0,68609.0,0.183361]
[1730730249379,0.028,68610.0,68609.0,0.32345264]
[1730730249676,0.021,68610.0,68609.0,0.21301264]
[1730730249864,0.072926,68607.0,68606.0,0.433727]
[1730730250271,0.021,68610.0,68609.0,0.072924]
[1730730251174,0.015,68610.0,68609.0,0.072924]
[1730730251478,0.012,68610.0,68609.0,0.072924]
[1730730251778,0.009,68610.0,68609.0,0.072924]
[1730730252775,0.009,68610.0,68609.0,0.183324]
[1730730253371,0.009,68610.0,68609.0,0.35671564]
[1730730253878,0.009,68610.0,68609.0,0.79395564]
[1730730254081,0.07291,68622.0,68621.0,0.072911]
[1730730255387,0.08691,68622.0,68621.0,0.072911]
[1730730255570,0.10091,68622.0,68621.0,0.072911]
[1730730256469,0.028,68622.0,68621.0,0.072911]
[1730730257486,0.10091,68622.0,68621.0,0.072911]
[1730730258478,0.10091,68622.0,68621.0,0.10027044]
[1730730272387,0.10091,68622.0,68614.0,0.40437217]
[1730730272388,0.10091,68622.0,68614.0,0.40553217]
[1730730272689,0.072917,68616.0,68615.0,0.072915]
[1730730273296,0.072917,68616.0,68615.0,0.16485317]
[1730730274191,0.072917,68616.0,68615.0,0.20842534]
[1730730274392,0.082917,68616.0,68615.0,0.16585317]
[1730730274592,0.082917,68616.0,68615.0,0.2095017]
[1730730275392,0.082917,68616.0,68615.0,0.16585317]
[1730730275696,0.091917,68616.0,68615.0,0.16685317]
[1730730277190,0.091917,68616.0,68615.0,0.2249494]
[1730730280189,0.091917,68616.0,68615.0,0.16685317]
[1730730280989,0.091917,68616.0,68615.0,0.002]
[1730730281189,0.091917,68616.0,68615.0,0.04573813]
[1730730281394,0.091917,68616.0,68615.0,0.002]
[1730730281794,0.091917,68616.0,68615.0,0.04573858]
[1730730282598,0.091917,68616.0,68615.0,0.002]
[1730730283001,0.11932637,68616.0,68615.0,0.002]
[1730730285100,0.091917,68616.0,68615.0,0.074917]
[1730730289708,0.091917,68616.0,68615.0,0.002]
[1730730295903,0.091917,68616.0,68615.0,0.074917]
[1730730300415,0.18385517,68616.0,68615.0,0.002]
[1730730301301,0.091917,68616.0,68615.0,0.002]
[1730730301910,0.091917,68616.0,68615.0,0.074917]
[1730730303404,0.091917,68616.0,68615.0,0.002]
[1730730303705,0.18385517,68616.0,68615.0,0.002]
[1730730306217,0.091917,68616.0,68615.0,0.002]
[1730730306403,0.091917,68616.0,68615.0,0.074917]
[1730730309414,0.091917,68616.0,68615.0,0.11862894]
[1730730309606,0.019,68616.0,68615.0,0.074917]
[1730730310208,0.019,68616.0,68615.0,0.16685517]
[1730730310404,0.019,68616.0,68615.0,0.074917]
[1730730313415,0.019,68616.0,68615.0,0.2149966]
[1730730315107,0.019,68616.0,68615.0,0.6521966]
[1730730315424,0.0102,68630.0,68629.0,0.2129816]
[1730730315606,0.00218585,68635.0,68634.0,0.072897]
[1730730316010,0.00218585,68635.0,68634.0,0.2129766]
[1730730316210,0.072891,68640.0,68639.0,0.072892]
[1730730316413,0.072888,68643.0,68642.0,0.072886]
[1730730317208,0.072885,68646.0,68644.0,0.072886]
[1730730317809,0.443875,68656.0,68644.0,0.2129656]
[1730730317810,0.02789618,68655.0,68644.0,0.2129656]
[1730730318016,0.072884,68647.0,68644.0,0.2129656]
[1730730318510,0.01446,68645.0,68644.0,0.2139656]
[1730730318705,0.098345,68645.0,68644.0,0.2149656]
[1730730319515,0.098345,68645.0,68644.0,0.002]
[1730730320816,0.072897,68634.0,68632.0,0.072899]
[1730730321018,0.3608,68639.0,68631.0,0.05446278]
[1730730321216,0.072899,68633.0,68631.0,0.12736278]
[1730730321422,0.072899,68633.0,68632.0,0.072899]
[1730730321919,0.3608,68639.0,68631.0,0.02752134]
[1730730321920,0.072899,68632.0,68631.0,0.02752134]
[1730730322116,0.005,68634.0,68629.0,0.072902]
[1730730322418,0.005,68634.0,68627.0,0.3608]
[1730730322419,0.072903,68628.0,68627.0,0.3608]
[1730730322715,0.072903,68628.0,68625.0,0.00218576]
[1730730322716,0.072906,68626.0,68625.0,0.00218576]
[1730730322917,0.072906,68626.0,68614.0,0.0136]
[1730730322918,0.510066,68626.0,68614.0,0.0136]
[1730730323115,0.510066,68626.0,68609.0,0.11016]
[1730730323116,0.072921,68612.0,68610.0,0.072922]
[1730730323317,0.072921,68612.0,68611.0,0.072921]
[1730730323318,0.072922,68612.0,68611.0,0.072921]
[1730730324114,0.072923,68610.0,68609.0,0.13768414]
[1730730324516,0.072923,68610.0,68609.0,0.11016]
[1730730324714,0.3608,68617.0,68606.0,0.02827546]
[1730730324920,0.001,68612.0,68605.0,0.072927]
[1730730325217,0.072927,68606.0,68605.0,0.072927]
[1730730326218,0.072927,68606.0,68605.0,0.02764304]
[1730730326419,0.07392,68612.0,68599.0,0.1427]
[1730730326420,0.072929,68604.0,68599.0,0.1427]
[1730730326619,0.072929,68604.0,68603.0,0.38829718]
[1730730328819,0.072929,68604.0,68603.0,0.46622718]
[1730730329017,0.072929,68604.0,68603.0,0.47022718]
[1730730330822,0.072929,68604.0,68603.0,0.5282902]
[1730730331424,0.072929,68604.0,68603.0,0.47022718]
[1730730331623,0.072929,68604.0,68603.0,0.52828916]
[1730730332319,0.072929,68604.0,68603.0,0.47022718]
[1730730333228,0.072929,68604.0,68603.0,0.39729718]
[1730730334632,0.072929,68604.0,68603.0,0.44083798]
[1730730335439,0.072929,68604.0,68603.0,0.43583798]
[1730730335729,0.072929,68604.0,68603.0,0.39629718]
[1730730336129,0.072929,68604.0,68603.0,0.39529718]
[1730730336339,0.072929,68604.0,68603.0,0.3678]
[1730730339429,0.072929,68604.0,68603.0,0.44073]
[1730730339631,0.072923,68610.0,68609.0,0.072923]
[1730730339830,0.072923,68610.0,68609.0,0.5738026]
[1730730340234,0.072923,68610.0,68609.0,0.3608]
[1730730340937,0.077923,68610.0,68609.0,0.3608]
[1730730341928,0.076923,68610.0,68609.0,0.3608]
[1730730342240,0.075923,68610.0,68609.0,0.3608]
[1730730343440,0.074923,68610.0,68609.0,0.3608]
[1730730343642,0.075923,68610.0,68609.0,0.3608]
[1730730346635,0.137523,68610.0,68609.0,0.3608]
[1730730348643,0.137523,68610.0,68609.0,0.4043408]
[1730730348946,0.106723,68610.0,68609.0,0.4043408]
[1730730349350,0.106723,68610.0,68609.0,0.3608]
[1730730350645,0.075923,68610.0,68609.0,0.433724]
[1730730354448,0.075923,68610.0,68609.0,0.46213869]
[1730730355354,0.003,68610.0,68609.0,0.46213869]
[1730730355542,0.003,68610.0,68609.0,0.7215536]
[1730730355739,0.003,68610.0,68609.0,0.66321829]
[1730730356362,0.003,68610.0,68609.0,0.72155914]
[1730730356653,0.003,68610.0,68609.0,0.72155917]
[1730730356852,0.003,68610.0,68609.0,0.83163904]
[1730730357452,0.003,68610.0,68609.0,0.77329829]
[1730730357651,0.003,68610.0,68609.0,0.80469829]
[1730730357856,0.003,68610.0,68609.0,0.86303904]
[1730730360253,0.075923,68610.0,68609.0,0.55453869]
[1730730360455,0.075923,68610.0,68609.0,0.52313869]
[1730730360844,0.075923,68610.0,68609.0,0.46213869]
[1730730361648,0.075923,68610.0,68609.0,0.3608]
[1730730362252,0.075923,68610.0,68609.0,0.433724]
[1730730364659,0.075923,68610.0,68609.0,0.47747114]
[1730730368150,0.075923,68610.0,68609.0,0.433724]
[1730730369559,0.075923,68610.0,68609.0,0.47747114]
[1730730369854,0.075923,68610.0,68609.0,0.433724]
[1730730371746,0.072924,68609.0,68608.0,0.05834075]
[1730730371956,0.135124,68609.0,68608.0,0.04375295]
[1730730372260,0.072926,68607.0,68606.0,0.04375295]
[1730730372651,0.072929,68604.0,68603.0,0.04375295]
[1730730372859,0.072937,68596.0,68595.0,0.36414644]
[1730730373053,0.072937,68596.0,68595.0,0.36298644]
[1730730374857,0.072937,68596.0,68595.0,0.36498644]
[1730730375257,0.073937,68596.0,68595.0,0.37698644]
[1730730375454,0.073937,68596.0,68595.0,0.01618644]
[1730730375963,0.072937,68596.0,68595.0,0.00418644]
[1730730376265,0.3608,68605.0,68595.0,0.00718644]
[1730730376468,0.072931,68603.0,68602.0,0.07293]
[1730730376673,0.072924,68609.0,68608.0,0.072923]
[1730730376859,0.072919,68614.0,68613.0,0.072919]
[1730730377366,0.12239632,68614.0,68613.0,0.072919]
[1730730378272,0.04947732,68614.0,68613.0,0.072919]
[1730730378563,0.0313,68621.0,68613.0,0.072919]
[1730730378564,0.072912,68621.0,68620.0,0.072909]
[1730730378880,0.36164,68625.0,68623.0,0.072909]
[1730730379066,0.07509444,68624.0,68623.0,0.072909]
[1730730379276,0.00218644,68624.0,68623.0,0.072909]
[1730730380665,0.01418644,68624.0,68623.0,0.073909]
[1730730380970,0.08709444,68624.0,68623.0,0.073909]
[1730730381267,0.08709444,68624.0,68623.0,0.10199383]
[1730730381669,0.01418644,68624.0,68623.0,0.10199383]
[1730730382362,0.01418644,68624.0,68623.0,0.46379383]
[1730730382363,0.02818644,68624.0,68623.0,0.46379383]
[1730730382665,0.0439,68637.0,68635.0,0.072896]
[1730730382666,0.0102,68636.0,68635.0,0.072896]
[1730730382873,0.3647,68649.0,68635.0,0.072896]
[1730730382874,0.07289,68641.0,68640.0,0.072888]
[1730730383569,0.39402,68645.0,68635.0,0.1400796]
[1730730383771,0.39402,68645.0,68644.0,0.072886]
[1730730383772,0.436146,68645.0,68644.0,0.072886]
[1730730383960,0.075346,68645.0,68644.0,0.072886]
[1730730385959,0.00246,68645.0,68644.0,0.073886]
[1730730387662,0.00246,68645.0,68644.0,0.184846]
[1730730388463,0.00246,68645.0,68644.0,0.21239674]
[1730730388667,0.0102,68654.0,68644.0,0.21239674]
[1730730388970,0.01578595,68655.0,68654.0,0.072876]
[1730730388971,0.00218595,68655.0,68654.0,0.072876]
[1730730389758,0.00218595,68655.0,68654.0,0.182796]
[1730730390267,0.0102,68667.0,68666.0,0.072863]
[1730730390573,0.072852,68677.0,68676.0,0.072851]
[1730730390769,0.0638,68682.0,68679.0,0.072849]
[1730730391067,0.0102,68692.0,68680.0,0.072848]
[1730730391068,0.083036,68692.0,68680.0,0.072848]
[1730730391370,0.083036,68692.0,68676.0,0.47072]
[1730730391371,0.008,68694.0,68693.0,0.072834]
[1730730393073,0.008,68694.0,68691.0,0.36196]
[1730730393262,0.080834,68694.0,68693.0,0.072834]
[1730730393462,0.008,68694.0,68693.0,0.072834]
[1730730393765,0.008,68694.0,68693.0,0.073834]
[1730730394167,0.008,68694.0,68693.0,0.072834]
[1730730395173,0.008,68694.0,68693.0,0.073834]
[1730730396064,0.008,68694.0,68693.0,0.074834]
[1730730397065,0.008,68694.0,68693.0,0.10121201]
[1730730397271,0.008,68694.0,68693.0,0.10221201]
[1730730397467,0.008,68694.0,68693.0,0.10121201]
[1730730397973,0.008,68694.0,68693.0,0.10021201]
[1730730400768,0.008,68694.0,68693.0,0.072834]
[1730730401073,0.008,68694.0,68691.0,0.3608]
[1730730401074,0.072835,68692.0,68691.0,0.3608]
[1730730401264,0.072835,68692.0,68691.0,0.433637]
[1730730401465,0.080834,68694.0,68693.0,0.072834]
[1730730402173,0.072835,68692.0,68691.0,0.3608]
[1730730402364,0.072835,68692.0,68691.0,0.433637]
[1730730402977,0.072835,68692.0,68691.0,0.38262087]
[1730730403466,0.008,68694.0,68693.0,0.072834]
[1730730403664,0.080833,68694.0,68693.0,0.072834]
[1730730405772,0.080833,68694.0,68691.0,0.30978387]
[1730730405773,0.072835,68692.0,68691.0,0.30978387]
[1730730406977,0.104035,68692.0,68691.0,0.31278387]
[1730730407573,0.104035,68692.0,68691.0,0.31478387]
[1730730408680,0.104035,68692.0,68691.0,0.31178387]
[1730730408975,0.104035,68692.0,68691.0,0.31378387]
[1730730409181,0.106035,68692.0,68691.0,0.31178387]
[1730730409481,0.002,68692.0,68691.0,0.38262087]
[1730730409674,0.001,68692.0,68691.0,0.38262087]
[1730730409872,0.003,68692.0,68691.0,0.38262087]
[1730730410885,0.075835,68692.0,68691.0,0.38262087]
[1730730411078,0.12854099,68692.0,68691.0,0.26601247]
[1730730412574,0.18868219,68692.0,68691.0,0.19317547]
[1730730413476,0.18868219,68692.0,68691.0,0.26601247]
[1730730414584,0.11584719,68692.0,68691.0,0.26601247]
[1730730417278,0.18868219,68692.0,68691.0,0.26601247]
[1730730417484,0.2574799,68692.0,68691.0,0.26601247]
[1730730418091,0.12854099,68692.0,68691.0,0.26601247]
[1730730419589,0.1280376,68692.0,68691.0,0.26601247]
[1730730420282,0.12805369,68692.0,68691.0,0.26601247]
[1730730420589,0.18872347,68692.0,68691.0,0.26601247]
[1730730423987,0.11588847,68692.0,68691.0,0.26601247]
[1730730424985,0.12423927,68692.0,68691.0,0.26601247]
[1730730425185,0.18490905,68692.0,68691.0,0.26601247]
[1730730425698,0.25774405,68692.0,68691.0,0.26601247]
[1730730427096,0.18290905,68692.0,68691.0,0.26801247]
[1730730427395,0.18290905,68692.0,68691.0,0.27101247]
[1730730427396,0.18190905,68692.0,68691.0,0.27101247]
[1730730427597,0.18190905,68692.0,68691.0,0.26901247]
[1730730427798,0.25474405,68692.0,68691.0,0.26901247]
[1730730428300,0.33638528,68692.0,68691.0,0.072837]
[1730730428492,0.18572347,68692.0,68691.0,0.072837]
[1730730429003,0.11288847,68692.0,68686.0,0.0608]
[1730730429203,0.072839,68689.0,68688.0,0.072839]
[1730730429698,0.18572747,68689.0,68688.0,0.072839]
[1730730429997,0.18572747,68689.0,68685.0,0.072842]
[1730730429998,0.072843,68686.0,68685.0,0.072842]
[1730730430199,0.12506169,68686.0,68685.0,0.072842]
[1730730430498,0.18460542,68686.0,68685.0,0.072842]
[1730730431198,0.18460542,68686.0,68685.0,0.077842]
[1730730431495,0.12506169,68686.0,68685.0,0.079842]
[1730730431699,0.05221869,68686.0,68685.0,0.079842]
[1730730432095,0.05221869,68686.0,68685.0,0.074842]
[1730730432295,0.12506069,68686.0,68685.0,0.077842]
[1730730432798,0.12506069,68686.0,68685.0,0.02682334]
[1730730433000,0.072842,68686.0,68685.0,0.077842]
[1730730433907,0.072842,68686.0,68685.0,0.005]
[1730730433908,0.12352242,68686.0,68685.0,0.005]
[1730730434295,0.20992256,68686.0,68685.0,0.005]
[1730730435405,0.15152096,68686.0,68685.0,0.005]
[1730730435602,0.12352242,68686.0,68685.0,0.005]
[1730730435905,0.05068042,68686.0,68685.0,0.077843]
[1730730436316,0.05068042,68686.0,68685.0,0.171843]
[1730730436999,0.05067186,68686.0,68685.0,0.171843]
[1730730437206,0.072841,68687.0,68685.0,0.099]
[1730730437409,0.072841,68687.0,68686.0,0.072842]
[1730730438208,0.12355732,68687.0,68686.0,0.072842]
[1730730438515,0.072841,68687.0,68686.0,0.072842]
[1730730439219,0.48431369,68687.0,68686.0,0.072842]
[1730730440002,0.48431369,68687.0,68686.0,0.074842]
[1730730440003,0.60994275,68687.0,68686.0,0.074842]
[1730730440407,0.60994275,68687.0,68686.0,0.003]
[1730730440608,0.74991604,68687.0,68686.0,0.003]
[1730730441105,1.18667604,68687.0,68686.0,0.003]
[1730730441808,1.21242992,68687.0,68686.0,0.003]
[1730730443117,1.21242992,68687.0,68675.0,0.0136]
[1730730443118,1.14158892,68687.0,68675.0,0.0136]
[1730730443417,0.072854,68675.0,68674.0,0.072854]
[1730730443622,0.12275687,68675.0,68674.0,0.072854]
[1730730444407,0.12275687,68675.0,68671.0,0.03053889]
[1730730444408,0.072857,68672.0,68671.0,0.10339589]
[1730730444616,0.12275987,68672.0,68671.0,0.07504113]
[1730730445514,0.12275987,68672.0,68671.0,0.00218413]
[1730730446710,0.27857764,68672.0,68671.0,0.00418413]
[1730730446916,0.27857764,68672.0,68671.0,0.00718413]
[1730730447509,0.21467764,68672.0,68671.0,0.005]
[1730730448107,0.072857,68672.0,68671.0,0.005]
[1730730448322,0.072857,68672.0,68671.0,0.077858]
[1730730452533,0.16772627,68676.0,68674.0,0.072854]
[1730730452534,0.072854,68675.0,68674.0,0.072854]
[1730730455024,0.072859,68670.0,68666.0,0.072863]
[1730730455220,0.072863,68668.0,68667.0,0.072861]
[1730730456525,0.072863,68668.0,68667.0,0.008]
[1730730457119,0.072865,68664.0,68663.0,0.072865]
[1730730457633,0.072863,68667.0,68666.0,0.072862]
[1730730458730,0.072863,68667.0,68660.0,0.02861315]
[1730730458731,0.3608,68671.0,68660.0,0.02861315]
[1730730458929,0.072866,68664.0,68663.0,0.083866]
[1730730459631,0.072866,68664.0,68663.0,0.01]
[1730730460222,0.2129456,68664.0,68663.0,0.01]
[1730730460623,0.2755456,68664.0,68663.0,0.021]
[1730730462632,0.2755456,68664.0,68663.0,0.01]
[1730730463126,0.2755456,68664.0,68663.0,0.00323675]
[1730730463733,0.072872,68658.0,68657.0,0.072872]
[1730730463925,0.433672,68658.0,68657.0,0.072872]
[1730730464623,0.072876,68655.0,68654.0,0.072875]
[1730730466033,0.072876,68655.0,68654.0,0.081875]
[1730730466532,0.072876,68655.0,68654.0,0.009]
[1730730467526,0.073876,68655.0,68654.0,0.017]
[1730730474640,0.073876,68655.0,68654.0,0.089876]
[1730730477134,0.073876,68655.0,68654.0,0.017]
[1730730477846,0.073876,68655.0,68654.0,0.089876]
[1730730478440,0.073876,68655.0,68654.0,0.017]
[1730730479444,0.001,68655.0,68654.0,0.089876]
[1730730480343,0.01238491,68669.0,68664.0,0.072865]
[1730730480549,0.00218491,68669.0,68668.0,0.072861]
[1730730480736,0.00218491,68669.0,68668.0,0.138161]
[1730730481942,0.00218491,68669.0,68657.0,0.04361164]
[1730730481943,0.072861,68668.0,68657.0,0.04361164]
[1730730482252,0.072875,68655.0,68654.0,0.009]
[1730730482431,0.072882,68648.0,68640.0,0.01578491]
[1730730482638,0.1400796,68641.0,68640.0,0.00218491]
[1730730482940,0.2129696,68641.0,68640.0,0.00218491]
[1730730484340,0.072896,68635.0,68630.0,0.04093444]
[1730730484548,0.2129756,68635.0,68632.0,0.072899]
[1730730484936,0.2129756,68635.0,68633.0,0.072898]
[1730730485346,0.1400796,68635.0,68633.0,0.072898]
[1730730485551,0.072897,68634.0,68633.0,0.072898]
[1730730485932,0.1400796,68635.0,68632.0,0.007]
[1730730486148,0.3608,68637.0,68636.0,0.072895]
[1730730487661,0.3608,68637.0,68636.0,0.078895]
[1730730487842,0.3618,68637.0,68636.0,0.078895]
[1730730488244,0.3608,68637.0,68636.0,0.081895]
[1730730488449,0.001,68637.0,68636.0,0.885775]
[1730730488650,0.072885,68646.0,68645.0,0.072885]
[1730730488839,0.072885,68646.0,68645.0,0.433685]
[1730730489147,0.07288,68653.0,68652.0,0.072877]
[1730730489550,0.072874,68656.0,68655.0,0.072872]
[1730730491447,0.073874,68656.0,68655.0,0.072872]
[1730730492542,0.001,68656.0,68655.0,0.072872]
[1730730492843,0.001,68656.0,68655.0,0.077872]
[1730730493655,0.072869,68660.0,68659.0,0.072871]
[1730730496149,0.072866,68664.0,68663.0,0.072865]
[1730730497442,0.072866,68664.0,68663.0,0.074865]
[1730730498656,0.072866,68664.0,68663.0,0.076865]
[1730730499259,0.072863,68667.0,68666.0,0.072862]
[1730730500548,0.39476,68676.0,68666.0,0.5008796]
[1730730500745,0.466853,68676.0,68675.0,0.072854]
[1730730500951,0.433653,68676.0,68675.0,0.072854]
[1730730501548,0.3608,68676.0,68675.0,0.072854]
[1730730502246,0.072845,68683.0,68682.0,0.072844]
[1730730503456,0.072845,68683.0,68682.0,0.073844]
[1730730503457,0.082845,68683.0,68682.0,0.073844]
[1730730503665,0.082845,68683.0,68682.0,0.2139236]
[1730730503666,0.01,68683.0,68682.0,0.2139236]
[1730730504263,0.01,68683.0,68682.0,0.3233636]
[1730730504953,0.01,68683.0,68682.0,0.3243636]
[1730730504954,0.013,68683.0,68682.0,0.3243636]
[1730730506171,0.013,68683.0,68682.0,0.35205178]
[1730730507261,0.013,68683.0,68682.0,0.21197218]
[1730730507562,0.085845,68683.0,68682.0,0.21197218]
[1730730509459,0.085845,68683.0,68682.0,0.002]
[1730730510964,0.446645,68683.0,68682.0,0.002]
[1730730511966,0.883445,68683.0,68682.0,0.002]
[1730730512259,0.072859,68670.0,68669.0,0.10932]
[1730730513050,0.072859,68670.0,68669.0,0.18218]
[1730730513255,0.3608,68673.0,68672.0,0.072857]
[1730730514767,0.433656,68673.0,68672.0,0.072857]
[1730730515359,0.433656,68673.0,68672.0,0.073857]
[1730730515863,0.433656,68673.0,68672.0,0.072857]
[1730730516867,0.433656,68673.0,68672.0,0.073857]
[1730730517860,0.433656,68673.0,68672.0,0.001]
[1730730518260,0.433656,68673.0,68671.0,0.10932]
[1730730518261,0.3608,68673.0,68671.0,0.10932]
[1730730518465,0.433656,68673.0,68672.0,0.001]
[1730730518666,0.433656,68673.0,68672.0,0.002]
[1730730519260,0.433656,68673.0,68672.0,0.001]
[1730730519665,0.433656,68673.0,68672.0,0.073857]
[1730730519966,0.433656,68673.0,68672.0,0.074857]
[1730730520267,0.3608,68673.0,68672.0,0.073857]
[1730730520470,0.3608,68673.0,68672.0,0.072857]
[1730730520659,0.3608,68673.0,68672.0,0.073857]
[1730730520856,0.433656,68673.0,68672.0,0.073857]
[1730730521261,0.433656,68673.0,68672.0,0.074857]
[1730730521460,0.3608,68673.0,68672.0,0.074857]
[1730730523159,0.433656,68673.0,68672.0,0.074857]
[1730730523358,0.433656,68673.0,68672.0,0.10264836]
[1730730533872,0.371,68683.0,68672.0,0.10264836]
[1730730533873,0.3608,68677.0,68674.0,0.072852]
[1730730534075,0.433652,68677.0,68676.0,0.2129316]
[1730730534278,0.433652,68677.0,68676.0,0.1619026]
[1730730535473,0.436652,68677.0,68676.0,0.072852]
[1730730535674,0.438652,68677.0,68676.0,0.072852]
[1730730538276,0.438652,68677.0,68676.0,0.11648319]
[1730730538778,0.9427196,68677.0,68674.0,0.04368842]
[1730730539078,0.072854,68675.0,68674.0,0.04368842]
[1730730539278,0.072854,68675.0,68671.0,0.05817492]
[1730730539279,0.072855,68674.0,68671.0,0.05817492]
[1730730539474,0.072857,68672.0,68671.0,0.05817492]
[1730730540577,0.072854,68675.0,68671.0,0.05829599]
[1730730540766,0.072857,68672.0,68671.0,0.05829599]
[1730730541578,0.072857,68672.0,68671.0,0.06029599]
[1730730541971,0.072857,68672.0,68671.0,0.05829599]
[1730730542171,0.072857,68672.0,68671.0,0.13115399]
[1730730542377,0.072857,68672.0,68671.0,0.13315399]